Cogmind - Beta 12 @@@ ROGUE MODE // 2024.02.02 @ 19:09:06 Player: TheRobAwesome Result: Destroyed by G-47 Trooper with Particle Gun Performance ------------- Evolutions (1) 500 Regions Visited (3) 600 Robots Destroyed (40) 200 Value Destroyed (901) 901 Prototype IDs (2) 40 Alien Tech Used (0) 0 Bonus (11) 11 TOTAL SCORE: 2252 Bonus ------- High Alert Combat Kills 11 Cogmind --------- Core Integrity 0/400 Matter 194/300 Energy 125/125 System Corruption 0% Temperature Cool (9) Movement Core (150) Ox2 Location -9/Materials Parts ------- > --- POWER (1) -------- Light Ion Engine > --- PROPULSION (2) --- Flight Unit > --- UTILITY (4) ------ Visual Processing Unit Signal Interpreter Terrain Scan Processor Propulsion Shielding > --- WEAPON (2) ------- Heavy Assault Rifle > --- INVENTORY (5) ---- Shotgun Peak State ------------ > --- POWER ------------ Improved Ion Engine > --- PROPULSION ------- Improved Treads Improved Treads > --- UTILITY ---------- Visual Processing Unit Signal Interpreter Terrain Scan Processor Propulsion Shielding > --- WEAPON ----------- Spread Laser Grenade Launcher > --- INVENTORY -------- Light Treads Structural Scanner Beam Rifle Rocket Launcher [Rating: 15] Favorites ----------- Power Improved Ion Engine Engine Improved Ion Engine Propulsion Improved Treads Treads Improved Treads Wheel Wheel Hover Unit Hover Unit Flight Unit Flight Unit Utility Visual Processing Unit Device Structural Scanner Storage Small Storage Unit Processor Visual Processing Unit Protection Propulsion Shielding Weapon Medium Laser Energy Gun Medium Laser Ballistic Gun Assault Rifle Launcher Grenade Launcher Special Weapon Welding Torch Build | -11 -10 -10 -9 ------- Run | Jun Mat Min Mat Slots Evolved 2 | . . . 2 Power . | . . . . Propulsion . | . . . . Utility 2 | . . . 2 Weapon . | . . . . Parts Attached 45 | 6 14 1 24 Power 4 | 1 1 . 2 Engine 4 | 1 1 . 2 Core . | . . . . Reactor . | . . . . Propulsion 12 | 2 3 1 6 Treads 5 | . . . 5 Leg . | . . . . Wheel 2 | 2 . . . Hover 1 | . 1 . . Flight 4 | . 2 1 1 Utility 16 | 1 9 . 6 Device 8 | . 5 . 3 Storage 1 | 1 . . . Processor 4 | . 3 . 1 Hackware . | . . . . Protection 3 | . 1 . 2 Artifact . | . . . . Weapon 13 | 2 1 . 10 Energy Gun 3 | . 1 . 2 Energy Cannon . | . . . . Ballistic Gun 5 | 2 . . 3 Ballistic Cannon . | . . . . Launcher 4 | . . . 4 Special Weapon 1 | . . . 1 Impact Weapon . | . . . . Slashing Weapon . | . . . . Piercing Weapon . | . . . . Special Melee Weapon . | . . . . Unidentified Prototypes . | . . . . Parts Lost 11 | . 2 . 9 Power . | . . . . Propulsion 4 | . 2 . 2 Utility 2 | . . . 2 Weapon 5 | . . . 5 Highest Loss Streak 3 | . 2 . 3 To Critical Strikes 1 | . . . 1 Average Slot Usage (%) 73 | . 71 60 79 Engine 5 | . 5 . 6 Treads 5 | . . . 13 Wheel 3 | . 8 . . Hover 3 | . 7 . . Flight 4 | . 3 17 1 Device 5 | . 10 . 3 Storage 1 | . 4 . . Processor 22 | . 11 28 33 Protection 2 | . . . 5 Energy Gun 11 | . 13 14 8 Ballistic Gun 3 | . 5 . 2 Launcher 2 | . . . 5 Naked Turns . | . . . . Heaviest Build 15 | 13 15 2 14 Greatest Support 46 | 26 26 8 46 Greatest Overweight (x) 3 | . 1 . 3 Average Overweight (x) . | . . . . Largest Inventory Capacity 8 | 8 8 5 5 Average Capacity 5 | 6 5 5 5 Most Carried 5 | 4 5 5 5 Average Carried 3 | . 3 4 2 Final Capacity 8 | 8 5 5 5 Final Carried 5 | . 5 5 1 Class Distribution -------------------- 91% | Mutant 8% | Scavenger-Mutant Dominant Class ---------------- Mutant | -10/Materials Mutant | -10/Mines Mutant | -9/Materials Resources | -11 -10 -10 -9 ----------- Run | Jun Mat Min Mat Matter Collected 716 | 198 236 17 265 Remotely 30 | . . . 30 Salvage Created 1032 | . 418 . 614 Parts 83 | . 38 . 45 Haulers Intercepted . | . . . . Recyclers Shooed 1 | . . . 1 Parts Field Recycled . | . . . . Retrieved Matter . | . . . . Parts Self-Destructed . | . . . . Prevented . | . . . . Kills | -11 -10 -10 -9 ------- Run | Jun Mat Min Mat Combat Hostiles Destroyed 28 | . 14 . 14 Guns 24 | . 13 . 11 AOE 3 | . . . 3 Classes Destroyed 9 | . 5 . 4 Worker 2 | . 1 . 1 Builder 3 | . 1 . 2 Tunneler 1 | . . . 1 Recycler 2 | . . . 2 Mechanic 1 | . . . 1 Watcher 3 | . 3 . . Swarmer 11 | . 9 . 2 Grunt 11 | . 5 . 6 Sentry 6 | . . . 6 Best Kill Streak 7 | . 7 . 5 Combat Bots Only 4 | . 4 . 4 Max Kills in Single Turn 2 | . 2 . 2 Gunslinging . | . . . . Exploded 1 | . . . 1 Melee . | . . . . Uniques/NPCs Destroyed . | . . . . Combat | -11 -10 -10 -9 -------- Run | Jun Mat Min Mat Damage Taken 1699 | . 289 . 1410 Core 543 | . 129 . 414 Absorbed by Shields . | . . . . Redirected to Shielding 22 | . . . 22 Core Remaining (%) 74 | 100 . 48 . Volleys Fired 111 | . 49 . 62 Largest 2 | . 2 . 2 Hottest 79 | . 70 . 79 Shots Fired 126 | . 61 . 65 Gun 117 | . 61 . 56 Cannon . | . . . . Launcher 9 | . . . 9 Special . | . . . . Kinetic 36 | . 17 . 19 Thermal 81 | . 44 . 37 Explosive 9 | . . . 9 Electromagnetic . | . . . . Robot Hit Streak 9 | . 8 . 9 Robot Miss Streak 7 | . 3 . 7 Penetration Max . | . . . . Secondary Targets . | . . . . Shots Hit Robots 86 | . 34 . 52 Core Hits 81 | . 23 . 58 Critical Kills . | . . . . Critical Parts Destroyed . | . . . . Critical Strikes 7 | . 6 . 1 Burn 7 | . 6 . 1 Melee Attacks . | . . . . Impact . | . . . . Slashing . | . . . . Piercing . | . . . . Sneak Attacks . | . . . . Combat Hostiles . | . . . . Follow-up Attacks . | . . . . Damage Inflicted 1821 | . 476 . 1345 Guns 1121 | . 476 . 645 Cannons . | . . . . Explosions 700 | . . . 700 Melee . | . . . . Ramming . | . . . . Kinetic 345 | . 149 . 196 Thermal 776 | . 327 . 449 Explosive 700 | . . . 700 Electromagnetic . | . . . . Impact . | . . . . Slashing . | . . . . Piercing . | . . . . Highest Corruption . | . . . . Average Corruption . | . . . . Corruption Purged . | . . . . Corruption Blocked . | . . . . Overload Shots . | . . . . Overflow Damage 44 | . . . 44 Projectiles . | . . . . Explosions 44 | . . . 44 Melee . | . . . . Knockbacks . | . . . . Impact . | . . . . Kinetic . | . . . . Secondary . | . . . . Self-Inflicted Damage 383 | . . . 383 Shots 5 | . . . 5 Rammed . | . . . . Targets Rammed . | . . . . Kicked . | . . . . Crushed . | . . . . Highest Temperature 147 | . 45 . 147 Average Temperature 26 | . 15 . 37 Received Heat Transfer 414 | . 42 . 372 Siege Activations . | . . . . Robots Corrupted . | . . . . Combat Hostiles . | . . . . Parts Fried . | . . . . Impact Corruptions . | . . . . Robots Melted 1 | . 1 . . Combat Hostiles 1 | . 1 . . Parts Melted 4 | . 2 . 2 Heat Transferred 2064 | . 1406 . 658 Parts Sabotaged . | . . . . Parts Stolen . | . . . . Parts Stripped . | . . . . Power Chain Reactions . | . . . . Missiles Intercepted . | . . . . Alert | -11 -10 -10 -9 ------- Run | Jun Mat Min Mat Peak Influence 436 | . 320 93 436 Initial 93 | . . 93 35 Average 191 | . 166 93 261 Maximum Alert Level 2 | . 1 . 2 Low Security (%) 49 | 100 55 100 24 Level 1 46 | . 44 . 64 Level 2 4 | . . . 10 Level 3 . | . . . . Level 4 . | . . . . Level 5 . | . . . . High Security . | . . . . Max Security . | . . . . Squads Dispatched 6 | . 4 . 2 Investigation 5 | . 4 . 1 Extermination . | . . . . Reinforcement 1 | . . . 1 Assault . | . . . . Garrison . | . . . . Intercept . | . . . . Searches Triggered . | . . . . Construction Impeded . | . . . . Haulers Reinforced . | . . . . Active Scanning Responses . | . . . . Cargo Convoy Interrupts . | . . . . Stealth | -11 -10 -10 -9 --------- Run | Jun Mat Min Mat Distress Signals 2 | . 1 . 1 Communications Jammed . | . . . . Distress Signals . | . . . . Times Spotted 40 | . 20 . 20 Peak Tracking Total 4 | . 4 . 4 Tactical Retreats 1 | . 1 . . Traps | -11 -10 -10 -9 ------- Run | Jun Mat Min Mat Traps Triggered 2 | . . . 2 Indirectly . | . . . . Trap Hack Attempts . | . . . . Triggered . | . . . . Disarmed . | . . . . Reprogrammed . | . . . . Reused . | . . . . Traps Extracted . | . . . . Installed . | . . . . Triggered . | . . . . Machines | -11 -10 -10 -9 ---------- Run | Jun Mat Min Mat Machines Disabled 5 | . . . 5 Max in Single Turn 2 | . . . 2 Machines Repaired . | . . . . Machines Sabotaged . | . . . . Overloaded Fab Kills . | . . . . Hacking | -11 -10 -10 -9 --------- Run | Jun Mat Min Mat Machines Accessed 14 | . 10 . 4 Terminals 10 | . 7 . 3 Fabricators . | . . . . Repair Stations 1 | . 1 . . Recycling Units 3 | . 2 . 1 Scanalyzers . | . . . . Garrison Access . | . . . . Total Hacks 46 | . 29 . 17 Successful 19 | . 13 . 6 Failed 24 | . 14 . 10 Catastrophic 3 | . 3 . . Database Lockouts 3 | . 2 . 1 Manual 1 | . 1 . . Terminals 36 | . 23 . 13 Fabricators . | . . . . Repair Stations 2 | . 2 . . Recycling Units 8 | . 4 . 4 Scanalyzers . | . . . . Garrison Access . | . . . . Terminal Hacks 16 | . 10 . 6 Record 10 | . 4 . 6 Prototype ID Bank 1 | . 1 . . Branch Access Points 1 | . 1 . . Emergency Access Points 1 | . 1 . . Alert Level 2 | . 2 . . Zone Layout 1 | . 1 . . Fabricator Hacks . | . . . . Repair Station Hacks . | . . . . Recycling Unit Hacks 3 | . 3 . . Report Inventory 2 | . 2 . . Retrieve Components 1 | . 1 . . Scanalyzer . | . . . . Garrison Access Hacks . | . . . . Unauthorized Hacks . | . . . . Terminals . | . . . . Fabricators . | . . . . Repair Stations . | . . . . Recycling Units . | . . . . Scanalyzers . | . . . . Garrison Access . | . . . . Data Cores Recovered . | . . . . Used . | . . . . Hacking Detections 12 | . 8 . 4 Full Trace Events 7 | . 5 . 2 Feedback Events . | . . . . Feedback Blocked . | . . . . Robot Schematics Acquired . | . . . . Robots Built . | . . . . Authchips . | . . . . Time . | . . . . Total Robot Build Rating . | . . . . Part Schematics Acquired . | . . . . Parts Built . | . . . . Authchips . | . . . . Time . | . . . . Total Part Build Rating . | . . . . Parts Repaired . | . . . . Time . | . . . . Parts Recycled . | . . . . Recycled Matter . | . . . . Retrieved Matter . | . . . . Retrieved Components 6 | . 6 . . Parts Scanalyzed . | . . . . Part Schematics Acquired . | . . . . Parts Damaged . | . . . . Bothacking | -11 -10 -10 -9 ------------ Run | Jun Mat Min Mat Used RIF Installer . | . . . . Robots Hacked . | . . . . Non-combat . | . . . . Combat . | . . . . Robot Hacks Applied . | . . . . Relay Couplers Released . | . . . . Fabnet Peak Effective % . | . . . . Robots Rewired . | . . . . Allies Hacked . | . . . . Hacks Repelled . | . . . . Allies | -11 -10 -10 -9 -------- Run | Jun Mat Min Mat Total Allies . | . . . . Largest Group . | . . . . Highest-Rated Group . | . . . . Highest-Rated Ally . | . . . . Total Orders . | . . . . Ally Attacks . | . . . . Total Damage . | . . . . Kills . | . . . . Allies Corrupted . | . . . . Allies Melted . | . . . . Intel | -11 -10 -10 -9 ------- Run | Jun Mat Min Mat Robot Analysis Total . | . . . . Derelict Logs Recovered 2 | . . 2 . Drone Launches . | . . . . Drone Recoveries . | . . . . Exploration | -11 -10 -10 -9 ------------- Run | Jun Mat Min Mat Turns Passed 1309 | 40 571 156 542 Spaces Moved 1389 | 35 682 389 283 Core 75 | 8 2 . 65 Treads 178 | . . . 178 Legs . | . . . . Wheels 152 | 27 125 . . Hover 304 | . 304 . . Flight 680 | . 251 389 40 Fastest Speed 37 | 50 40 37 37 Average Speed 68 | 80 59 39 129 Slowest Speed 200 | 90 120 40 200 Overloaded Moves . | . . . . Propulsion Burnouts . | . . . . Robots Hopped . | . . . . Cave-ins Triggered . | . . . . Exploration Rate (%) 59 | 5 97 92 42 Regions Visited 3 Branch Regions 1 Pre-discovered Areas . | . . . . Known Exits Taken 2 | . 1 1 . Unknown Exits Taken 1 | 1 . . . Scrap Searched 1 | . . 1 . Spaces Dug . | . . . . Terrain Destroyed 114 | . . . 114 Melee . | . . . . Projectile . | . . . . AOE 114 | . . . 114 Terrain Rammed . | . . . . Walls Destroyed . | . . . . Machines Disabled . | . . . . Actions | -11 -10 -10 -9 --------- Run | Jun Mat Min Mat Total 1614 | 46 782 392 394 Wait 15 | . 15 . . Move 1386 | 34 681 388 283 Hop . | . . . . Pick Up 39 | 6 14 2 17 Fast Attach . | . . . . Attach 27 | 6 5 1 15 Detach 2 | . 1 . 1 Swap 18 | . 9 . 9 Drop 16 | . 8 1 7 Fire 111 | . 49 . 62 Melee . | . . . . Ram . | . . . . Kick . | . . . . Crush . | . . . . Escape Stasis . | . . . . Rewire . | . . . . Trap . | . . . . Miscellaneous . | . . . . Route ------- -11/Junkyard -10/Materials (discovered 4 exits: *Mat x3 / *Min) -10/Mines (discovered 2 exits: *Mat x2) -9/Materials (discovered 2 exits: *Mat / [*Sto]) History --------- Turn | Location | Event 6 | -11/Junkyard | Discovered new exit (range 14) 41 | -11/Junkyard | Entered Materials 303 | -10/Materials | Build established: Mutant 403 | -10/Materials | Discovered new exit (range 7) 415 | -10/Materials | Discovered new exit (range 13) 439 | -10/Materials | Discovered new exit (range 18) 463 | -10/Materials | Discovered new exit (range 9) 469 | -10/Materials | Central database locked down 469 | -10/Materials | Central database locked down 565 | -10/Materials | Identified exit to Mines 600 | -10/Materials | Core integrity fell below 50% 612 | -10/Materials | Entered Mines 650 | -10/Mines | Learned Materials security intel 651 | -10/Mines | Identified exit to Materials 666 | -10/Mines | Found a damaged Exp. Sensor Array with a note attached 761 | -10/Mines | Discovered exit to Materials (range 12) 768 | -10/Mines | Entered Materials 768 | -9/Materials | Evolved 2 slots: Utility x2 824 | -9/Materials | Lost 3 parts (1n1u1w) 904 | -9/Materials | Core integrity fell below 50% 1023 | -9/Materials | Central database locked down 1136 | -9/Materials | Discovered new exit (range 10) 1150 | -9/Materials | Identified exit to Materials 1161 | -9/Materials | Lost 3 parts (1n2w) 1258 | -9/Materials | Core integrity fell below 20% 1277 | -9/Materials | Discovered new exit (range 13) 1310 | -9/Materials | Destroyed by G-47 Trooper with Particle Gun Last Messages --------------- 01282_ K-01 Serf collects debris. 01283_ Acquired 13 matter. 01285_ K-01 Serf collects debris. 01286_ Acquired Flight Unit. 01288_ R-06 Scavenger collects Beam Rifle. 01289_ K-01 Serf collects debris. 01289_ Acquired 18 matter. 01291_ Y-45 Defender destroyed. 01292_ K-01 Serf collects debris. 01293_ The unstable cave ceiling collapses. 01294_ Critical hit (Burn: +37). 01295_ K-01 Serf collects debris. 01296_ R-06 Scavenger collects Lgt. Assault Rifle. 01298_ K-01 Serf collects debris. 01300_ R-06 Scavenger collects Flight Unit. 01303_ K-01 Serf collects debris. 01304_ R-06 Scavenger collects Lgt. Ion Engine. 01306_ K-01 Serf collects debris. 01306_ Rocket Launcher destroyed. 01309_ K-01 Serf collects debris. Map ----- +----------------------------------------------------+ | ?????????????????????????????????????????????????? | | ?????????????????????????????????????????????????? | | ?????????????????????????????????????????????????? | | ?????????????????????????????????????????????????? | | ?????????????????????????????????????????????????? | | ?????????????????????????????????????????????????? | | ?????????????????????????????????????????????????? | | ?????????????????????????????????????????????????? | | ?????????????????????????????????????????????????? | | ?????????????????????????????????????????????????? | | ?????????????????????????????????????????????????? | | ???????????????????????????? #???????????????????? | | ???????????????????????????? ###?????????????????? | | ??????????????????????????? # ##????????????????? | | ??????????????????????????? ##???????????????? | | ??????????????????????????? !!????????????????? | | ???????????????????????????%= !??????#??????????? | | ???????????????????????????= ???? #??????????? | | ??????????????????????????? # ???? #??????????? | | ?????????????????????????? #????< #??????????? | | ?????????????????????????? #??? #??????????? | | ?????????????????????????? +?? #??????????? | | ?????????????????????????? #? #??????????? | | ???????????????#######????%[ # ###????????? | | ???????????????# #####g%= #????????? | | ???????????????# [ @ ??????? | | ???????????????# [% r k ! ??????? | | ???????????????# %! ??????? | | ???????????????# ######## # #????????? | | ??????########### ##???????? ####????????? | | ??????# | """ # #?????????? #???????????? | | ??????# "Y" + +??????????? #???????????? | | ??????# # #???????????? #???????????? | | ??????# # #??????????????!|#???????????? | | ??????# """"" # #???????????????|#???????????? | | ??????# """"" # #????????????????#???????????? | | ??????# """"" # #????????????????????????????? | | ??????# # +????????????????????????????? | | ??????#+######### #????????????????????????????? | | ??????# #???????###+#????????????????????????????? | | ??????# #????????????????????????????????????????? | | ####### #????????????????????????????????????????? | | # #??#####????????????? ### ???????????? | | # #### #????????????? ########???????????? | | """ + +????????????? # ???????????? | | """ # #????????????? # ?????????????? | | """ # """ % #????????????? # ?????????????? | | # """ #????????????? # ##?????????????? | | ####### """ ! #????????????? # ##?????????????? | | ??# """ #????????????? + ##?????????????? | +----------------------------------------------------+ Best States ------------- Heat Dissipation 35 Energy Generation 12 Energy Capacity 265 Matter Stores 300 Matter Capacity 300 Sight Range 18 Terrain Scan Range 14 Terrain Scan Density 85 Propulsion Shielding 33 Evasion (%) 62 Recoil Reduction 2 Item Schematics ----------------- None Robot Schematics ------------------ None Fabricated ------------ Nothing Alien Tech Used ----------------- None Achievements -------------- It's Just You Librarian Novice Programmer One Hack Too Far Party Time Storm Trooper Uninvited Guest Challenges ------------ None Game ------ Seed PrecisionReflectiveTearclaws Manual? 0 Play Time 00:35:13 Cumulative 5.7 hours Start 2024.02.02 @ 18:36:22 End 2024.02.02 @ 19:09:06 Sessions 1 Manual Loads 0 Difficulty Rogue Special Mode None Game No. 16 Rogue 16 Adventurer 0 Explorer 0 Win Type - Total 0 Types 0/0/0/0/0/0/0/0/0 Lore% 3 Gallery% 9 Achievement% 3 Wizard Run 0 Options --------- ASCII 0 Keyboard 0 Movement Numpad Keybinds 0 Fullscreen 1 Font 24/Smallcaps Map View 76x50 Tactical HUD 1 Map Filters NONE Filters NONE Steam 1 RUN: 14aa0221-f8d9-4ba3-a8c8-fd51dec058bf